bitfinex-derivatives/quotes_SOLF0:USTF0_20260115
["timestamp","ask_amount","ask_price","bid_price","bid_amount"]
[1768460211766,9.60832081,144.26,144.18,22.57915128]
[1768460212177,30.99878491,144.26,144.18,22.57915128]
[1768460212383,0.03547919,144.23,144.18,22.57915128]
[1768460214181,81.92,144.27,144.18,22.57915128]
[1768460214383,81.92,144.27,144.18,22.52690278]
[1768460214881,81.92,144.27,144.19,20.41041353]
[1768460215279,81.92,144.27,144.22,20.45959061]
[1768460215781,27.6302641,144.28,144.22,20.45959061]
[1768460218482,3.36742081,144.29,144.22,20.45959061]
[1768460218987,21.3904641,144.3,144.22,20.45959061]
[1768460219177,85.28742081,144.31,144.23,20.41041353]
[1768460219378,106.67788491,144.31,144.26,0.05100749]
[1768460220384,21.3904641,144.3,144.23,20.41041353]
[1768460220680,3.36742081,144.29,144.23,20.41041353]
[1768460221481,0.04645041,144.27,144.25,0.05019794]
[1768460224680,24.80433532,144.27,144.21,20.41041353]
[1768460224883,24.75788491,144.27,144.21,20.41041353]
[1768460225685,0.04427947,144.25,144.23,0.04860226]
[1768460243302,21.3904641,144.28,144.23,0.04860226]
[1768460244398,0.04818049,144.27,144.23,0.04860226]
[1768460244996,0.04818049,144.27,144.23,21.72343748]
[1768460249893,21.50769549,144.3,144.23,21.72343748]
[1768460250097,5.40787692,144.29,144.23,21.72343748]
[1768460250298,21.50769549,144.3,144.23,21.72343748]
[1768460251398,21.50769549,144.32,144.24,21.67483522]
[1768460251596,5.40927013,144.31,144.27,21.72773088]
[1768460251798,21.50769549,144.32,144.27,21.72773088]
[1768460254994,5.41016267,144.31,144.27,21.72773088]
[1768460255198,21.50769549,144.32,144.27,21.72773088]
[1768460255402,5.40941643,144.31,144.27,21.72773088]
[1768460255604,21.50769549,144.32,144.27,21.72773088]
[1768460255802,5.41029495,144.31,144.27,21.72773088]
[1768460256094,21.50769549,144.32,144.27,21.72773088]
[1768460256297,5.40962052,144.31,144.27,21.72773088]
[1768460256502,21.50769549,144.32,144.27,21.72773088]
[1768460256809,5.41113826,144.31,144.27,21.72773088]
[1768460257108,21.50769549,144.32,144.27,21.72773088]
[1768460257297,5.41095487,144.31,144.27,0.05289566]
[1768460257501,21.50769549,144.32,144.27,0.05289566]
[1768460257696,5.41117365,144.31,144.27,0.05289566]
[1768460257903,21.50769549,144.32,144.27,0.05289566]
[1768460258208,5.41133886,144.31,144.27,0.05289566]
[1768460258410,21.50769549,144.32,144.27,0.05289566]
[1768460258615,5.41169643,144.31,144.27,0.05289566]
[1768460258815,21.50769549,144.32,144.27,0.05289566]
[1768460259112,21.50769549,144.3,144.25,21.67483522]
[1768460260313,21.50769549,144.3,144.26,0.04835835]
[1768460261615,21.50769549,144.32,144.26,21.72319357]
[1768460261807,5.40954884,144.31,144.26,21.72319357]
[1768460262113,21.50769549,144.32,144.26,21.72319357]
[1768460262315,5.40941998,144.31,144.26,21.72319357]
[1768460262611,21.50769549,144.32,144.26,21.72319357]
[1768460262811,5.40938038,144.31,144.26,21.72319357]
[1768460263014,21.50769549,144.32,144.26,21.72319357]
[1768460263208,5.40932229,144.31,144.26,21.72319357]
[1768460263408,21.50769549,144.32,144.26,21.72319357]
[1768460263611,5.4085216,144.31,144.26,21.72319357]
[1768460263807,21.50769549,144.32,144.26,21.72319357]
[1768460264008,5.40802245,144.31,144.26,21.72319357]
[1768460264214,21.50769549,144.32,144.26,21.72319357]
[1768460267413,23.66050366,144.32,144.26,21.72319357]
[1768460268816,0.05234598,144.3,144.26,21.72319357]
[1768460271612,20.61286481,144.34,144.26,21.72319357]
[1768460271817,20.61286481,144.34,144.26,21.67483522]
[1768460271818,22.76567298,144.34,144.26,21.67483522]
[1768460272717,22.76567298,144.34,144.29,0.0451711]
[1768460273824,29.00287298,144.34,144.29,0.0451711]
[1768460274223,20.61286481,144.33,144.29,0.0451711]
[1768460276315,22.81203036,144.32,144.27,19.39086078]
[1768460276717,22.81203036,144.32,144.24,19.39086078]
[1768460276926,20.61286481,144.31,144.24,19.39086078]
[1768460277420,0.04543544,144.29,144.26,0.04388981]
[1768460279620,20.61286481,144.34,144.26,19.43475059]
[1768460279826,20.61286481,144.34,144.26,21.54366895]
[1768460280727,20.61286481,144.34,144.29,0.05123972]
[1768460281630,20.61286481,144.38,144.31,19.39086078]
[1768460281930,20.61286481,144.4,144.33,19.44355365]
[1768460282128,20.61286481,144.4,144.35,0.0457467]
[1768460301452,22.07806789,144.39,144.35,0.0457467]
[1768460304954,22.07806789,144.39,144.31,20.03859079]
[1768460305555,21.34984032,144.37,144.31,20.03859079]
[1768460306057,21.34984032,144.37,144.29,20.03859079]
[1768460306058,19.24728871,144.35,144.29,20.03859079]
[1768460306559,0.05025656,144.35,144.29,20.03859079]
[1768460307158,0.05025656,144.35,144.31,0.0485838]
[1768460307554,27.63709688,144.35,144.31,0.0485838]
[1768460315065,19.19703215,144.34,144.31,0.0485838]
[1768460315370,25.43423215,144.34,144.27,20.03859079]
[1768460316474,0.04890265,144.32,144.29,0.04505438]
[1768460318972,6.28700265,144.32,144.29,0.04505438]
[1768460319574,0.04890265,144.32,144.29,0.04505438]
[1768460321487,19.2459348,144.32,144.26,81.86]
[1768460322183,25.4840348,144.32,144.25,20.03859079]
[1768460322570,25.4840348,144.32,144.27,0.05327062]
[1768460326278,19.2459348,144.32,144.27,0.05327062]
[1768460332790,19.2459348,144.32,144.27,18.78586035]
[1768460333893,19.2459348,144.32,144.27,25.02586035]
[1768460334390,9.59961166,144.36,144.28,24.97218973]
[1768460334391,19.63223836,144.34,144.28,24.97218973]
[1768460335600,0.05126963,144.32,144.3,0.05154208]
[1768460336400,19.63223836,144.37,144.3,0.05154208]
[1768460336594,19.63223836,144.37,144.3,18.78413181]
[1768460337098,19.63223836,144.37,144.31,24.97058973]
[1768460337496,0.04633334,144.35,144.31,24.97058973]
[1768460337695,19.63223836,144.37,144.31,24.97058973]
[1768460338790,0.04577472,144.35,144.31,24.97058973]
[1768460339099,19.63223836,144.37,144.31,24.97058973]
[1768460343597,19.63223836,144.37,144.32,6.2379]
[1768460343793,19.63223836,144.37,144.33,0.04764839]
[1768460366610,19.51879839,144.39,144.33,19.48754254]
[1768460366808,19.51879839,144.39,144.33,25.72494254]
[1768460367309,19.51879839,144.39,144.33,19.48754254]
[1768460367514,19.51879839,144.39,144.34,6.237]
[1768460368910,19.51879839,144.39,144.33,19.48754254]
[1768460368911,22.88201005,144.37,144.28,19.43989415]
[1768460369111,19.51879839,144.36,144.28,19.43989415]
[1768460369799,0.04539477,144.33,144.31,0.04713159]
[1768460370515,19.51879839,144.36,144.31,0.04713159]
[1768460370809,19.51879839,144.36,144.29,19.43989415]
[1768460371411,19.51879839,144.36,144.31,0.04996726]
[1768460381918,19.51879839,144.36,144.31,6.28806726]
[1768460382816,19.51879839,144.36,144.31,0.04996726]
[1768460383018,3.36321166,144.33,144.29,6.239]
[1768460383218,19.51879839,144.32,144.29,6.239]
[1768460383517,9.839e-05,144.32,144.29,6.239]
[1768460383920,9.839e-05,144.32,144.29,6.29189732]
[1768460384121,0.04898516,144.32,144.29,6.29189732]
[1768460384322,0.04898516,144.32,144.29,0.05289732]
[1768460393041,0.04898516,144.32,144.24,19.34446415]
[1768460393042,14.05080382,144.31,144.24,19.34446415]
[1768460393338,199.6789,144.36,144.24,19.34446415]
[1768460393339,13.9979065,144.29,144.24,19.34446415]
[1768460394036,0.05310226,144.28,144.25,0.04944429]
[1768460395133,14.12022222,144.28,144.21,19.34446415]
[1768460395732,2.15257852,144.22,144.15,19.34446415]
[1768460395929,11.89926073,144.22,144.15,19.34446415]
[1768460396134,0.04518216,144.2,144.17,0.05199869]
[1768460397037,11.89926073,144.22,144.17,19.39646284]
[1768460397241,11.93286839,144.24,144.17,19.39646284]
[1768460400338,2.15257852,144.26,144.17,19.39646284]
[1768460400339,14.18405122,144.26,144.17,19.39646284]
[1768460400544,12.0314727,144.26,144.19,19.34446415]
[1768460400746,12.0314727,144.26,144.2,0.04779564]
[1768460401445,14.18405122,144.26,144.2,0.04779564]
[1768460403046,12.12664447,144.23,144.17,19.34446415]
[1768460404148,12.12664447,144.23,144.19,0.0475789]
[1768460404744,12.23633092,144.22,144.15,21.49704267]
[1768460404943,14.38890944,144.22,144.15,19.34446415]
[1768460405550,14.38890944,144.22,144.13,84.05257852]
[1768460405852,14.34112198,144.22,144.16,0.05307314]
[1768460406052,0.04585446,144.19,144.16,0.05307314]
[1768460410254,12.21889947,144.2,144.16,0.05307314]
[1768460411053,12.36565389,144.22,144.16,0.05307314]
[1768460411254,12.36565389,144.22,144.18,0.04742262]
[1768460412350,0.04699267,144.21,144.18,0.04742262]
[1768460415359,0.04699267,144.21,144.18,6.29132262]
[1768460415559,1.96464656,144.22,144.18,6.29132262]
[1768460415762,4.656e-05,144.22,144.18,6.29132262]
[1768460420359,2.53058673,144.24,144.18,6.29132262]
[1768460420657,0.01222828,144.22,144.19,20.26786035]
[1768460420852,2.15257852,144.27,144.19,20.26786035]
[1768460421862,2.15257852,144.27,144.22,0.04911561]
[1768460422965,0.25795154,144.26,144.22,0.04911561]
[1768460426663,0.45556619,144.36,144.23,2.15257852]
[1768460426968,0.45556619,144.34,144.28,0.05312961]
[1768460427167,0.45556619,144.33,144.28,0.05312961]
[1768460428466,0.45035838,144.32,144.25,2.15257852]
[1768460429366,0.45035838,144.32,144.27,0.05039454]
[1768460429667,0.54614511,144.31,144.27,0.05039454]
[1768460430763,0.54614511,144.31,144.23,21.55280176]
[1768460431767,0.63723112,144.3,144.26,0.05259568]
[1768460436764,6.28671628,144.31,144.26,0.05259568]
[1768460436974,0.04811628,144.31,144.26,0.05259568]
[1768460437470,0.9075329,144.31,144.26,0.05259568]
[1768460437871,0.9075329,144.31,144.26,19.45281892]
[1768460440881,0.04811628,144.31,144.26,19.45281892]
[1768460441173,0.04811628,144.31,144.27,21.55280176]
[1768460441673,7.30609826,144.34,144.27,21.55280176]
[1768460441873,6.2374,144.34,144.27,21.55280176]
[1768460442780,0.00043945,144.32,144.29,19.44883566]
[1768460442971,1.11681454,144.36,144.29,21.60141418]
[1768460443371,1.15734198,144.33,144.25,21.55280176]
[1768460444073,7.39504198,144.33,144.25,21.55280176]
[1768460444580,0.04376984,144.3,144.28,0.05090244]
[1768460448074,0.04376984,144.3,144.25,21.55280176]
[1768460448287,0.04376984,144.3,144.25,19.40022324]
[1768460449078,0.04376984,144.3,144.26,0.05209915]
[1768460451374,0.04376984,144.3,144.26,21.89797463]
[1768460451575,1.49906345,144.34,144.26,21.89797463]
[1768460451576,7.73626345,144.34,144.26,21.89797463]
[1768460452679,0.05047034,144.31,144.26,21.89797463]
[1768460489224,0.05047034,144.31,144.26,11.24847463]
[1768460489420,13.31738341,144.31,144.22,88.1419]
[1768460489626,13.26691307,144.31,144.22,88.1419]
[1768460490327,13.26691307,144.31,144.25,0.04944075]
[1768460490831,6.2391,144.3,144.25,0.04944075]
[1768460491326,6.2391,144.3,144.25,21.12694475]
[1768460492638,6.2394,144.29,144.25,21.12694475]
[1768460496424,0.05027323,144.28,144.25,21.12694475]
[1768460497236,0.05027323,144.28,144.22,81.9]
[1768460497237,28.25019976,144.28,144.22,81.9]
[1768460497634,28.25019976,144.28,144.19,6.2434]
[1768460497832,28.19992653,144.28,144.19,88.1234]
[1768460498135,6.242,144.23,144.11,114.44574008]
[1768460498340,25.3238347,144.26,144.16,0.05011368]
[1768460498538,25.3238347,144.26,144.12,182.40910817]
[1768460498840,6.2415,144.24,144.15,6.2451]
[1768460499026,6.2415,144.24,144.12,85.24370817]
[1768460499027,21.96012653,144.24,144.12,85.24370817]
[1768460499225,21.96012653,144.24,144.13,21.077504]
[1768460499430,6.242,144.23,144.18,21.077504]
[1768460503641,21.96012653,144.24,144.18,21.077504]
[1768460504438,28.20212653,144.23,144.18,21.077504]
[1768460504642,28.20212653,144.23,144.17,0.04672491]
[1768460505243,6.2424,144.22,144.17,0.04672491]
[1768460506843,21.96012653,144.22,144.16,2.891e-05]
[1768460507843,6.2433,144.2,144.16,2.891e-05]
[1768460508043,6.2433,144.2,144.18,0.05097731]
[1768460508244,6.2433,144.2,144.16,2.891e-05]
[1768460508451,6.28842298,144.2,144.16,2.891e-05]
[1768460509342,6.28842298,144.2,144.17,0.04643713]
[1768460510942,0.04512298,144.2,144.17,0.04643713]
[1768460512341,30.35847333,144.22,144.17,23.36120768]
[1768460512546,8.3983468,144.22,144.17,23.36120768]
[1768460512850,6.2424,144.22,144.17,23.36120768]
[1768460513046,84.0759468,144.23,144.17,23.36120768]
[1768460513245,2.1559468,144.23,144.17,23.36120768]
[1768460513445,28.29628195,144.24,144.17,25.51715448]
[1768460513949,0.04715044,144.22,144.17,25.51715448]
[1768460517455,0.04715044,144.22,144.17,23.36120768]
[1768460522065,22.10173239,144.22,144.17,23.36120768]
[1768460522856,28.34423239,144.22,144.17,0.04643713]
[1768460523056,24.21052875,144.21,144.17,0.04643713]
[1768460524369,28.29908195,144.17,144.1,23.31477055]
[1768460525459,0.04604404,144.15,144.12,0.05290599]
[1768460526364,30.50207279,144.15,144.08,23.31477055]
[1768460526569,30.45602875,144.15,144.08,23.31477055]
[1768460527363,0.05257865,144.13,144.1,0.05137549]
[1768460528667,22.1071606,144.13,144.1,0.05137549]
[1768460530568,22.1071606,144.13,144.06,23.31477055]
[1768460531164,0.05257865,144.13,144.08,23.31477055]
[1768460531361,22.05458195,144.15,144.08,23.31477055]
[1768460532272,22.05458195,144.15,144.1,0.04832668]
[1768460532670,0.04476398,144.14,144.1,0.04832668]
[1768460535266,0.04476398,144.14,144.1,23.36309723]
[1768460536275,22.05458195,144.17,144.1,23.36309723]
[1768460536476,22.05458195,144.17,144.1,25.51904403]
[1768460536976,22.05458195,144.17,144.1,23.36309723]
[1768460537375,0.04640987,144.15,144.1,23.36309723]
[1768460541176,6.29180987,144.15,144.1,23.36309723]
[1768460544180,29.46007747,144.15,144.1,23.36309723]
[1768460544370,29.46007747,144.15,144.1,0.04832668]
[1768460551886,6.2458,144.14,144.1,0.04832668]
[1768460557793,29.4140676,144.14,144.1,0.04832668]
[1768460566102,6.2458,144.14,144.1,23.57776624]
[1768460567397,23.1682676,144.22,144.14,23.52943956]
[1768460567602,23.1682676,144.22,144.16,23.52943956]
[1768460567900,23.1682676,144.22,144.16,25.68538636]
[1768460568300,25.3242144,144.24,144.16,25.68538636]
[1768460568503,0.04887155,144.21,144.19,0.04432223]
[1768460572706,0.04887155,144.21,144.16,23.52943956]
[1768460572895,23.1682676,144.23,144.16,23.52943956]
[1768460574006,23.1682676,144.23,144.18,0.04847648]
[1768460574507,0.04411919,144.22,144.18,0.04847648]
[1768460574695,25.88602188,144.25,144.18,26.69621118]
[1768460576007,0.0528577,144.23,144.18,26.69621118]
[1768460579410,0.0528577,144.23,144.18,32.94011118]
[1768460582414,0.0528577,144.23,144.19,6.2434]
[1768460582613,25.88602188,144.27,144.19,32.8911347]
[1768460583614,0.04717549,144.24,144.22,0.04629327]
[1768460584608,25.93319737,144.24,144.22,0.04629327]
[1768460584814,25.93319737,144.24,144.19,26.6477347]
[1768460585712,0.04717549,144.24,144.2,0.04801604]
[1768460589715,0.04717549,144.24,144.2,26.69575074]
[1768460589915,29.25339444,144.26,144.2,26.69575074]
[1768460590118,25.88602188,144.26,144.2,26.69575074]
[1768460590922,0.04632087,144.24,144.2,26.69575074]
[1768460592918,25.88602188,144.26,144.2,26.69575074]
[1768460593117,25.88602188,144.28,144.2,26.69575074]
[1768460593315,25.88602188,144.28,144.2,26.6477347]
[1768460593821,25.88602188,144.28,144.21,32.8903347]
[1768460594011,0.03978563,144.26,144.23,26.69535946]
[1768460594214,6.2385,144.31,144.23,26.69535946]
[1768460594215,25.88602188,144.3,144.23,26.69535946]
[1768460597523,32.12492188,144.3,144.23,26.69535946]
[1768460604927,32.64472457,144.32,144.23,26.69535946]
[1768460605123,32.64472457,144.32,144.26,0.04601587]
[1768460605824,32.64472457,144.32,144.26,25.5951811]
[1768460606834,26.40652457,144.32,144.26,25.5951811]
[1768460613835,32.64462457,144.32,144.26,25.5951811]
[1768460614635,32.64462457,144.32,144.26,0.04601587]
[1768460615030,32.64502457,144.31,144.26,0.04601587]
[1768460619736,26.40652457,144.31,144.26,0.04601587]
[1768460619938,26.40652457,144.31,144.26,25.5951811]
[1768460621840,26.40652457,144.31,144.23,25.54916523]
[1768460622032,26.45099003,144.3,144.23,25.54916523]
[1768460622537,32.68999003,144.3,144.23,31.79096523]
[1768460623042,26.45099003,144.3,144.25,0.04852129]
[1768460634048,26.45099003,144.3,144.25,28.22956641]
[1768460634556,26.45099003,144.3,144.25,0.04852129]
[1768460636157,0.04446546,144.3,144.26,28.18104512]
[1768460636756,0.04446546,144.3,144.26,34.42154512]
[1768460638748,27.2324746,144.32,144.26,36.57462381]
[1768460641553,27.2324746,144.32,144.27,28.18104512]
[1768460641956,27.2324746,144.32,144.28,0.04559821]
[1768460642359,27.2324746,144.34,144.28,28.22664333]
[1768460643851,33.4696746,144.34,144.28,28.22664333]
[1768460646055,27.2324746,144.34,144.28,30.37972202]
[1768460646560,27.2324746,144.36,144.3,2.15307869]
[1768460646859,27.2324746,144.36,144.32,0.05119164]
[1768460657768,29.38555329,144.38,144.32,0.05119164]
[1768460658968,27.2324746,144.38,144.32,0.05119164]
[1768460659169,27.2324746,144.38,144.32,28.23223676]
[1768460661070,27.2324746,144.38,144.32,34.47003676]
[1768460661968,27.2324746,144.38,144.33,34.19077366]
[1768460664371,27.2324746,144.38,144.32,0.05119164]
[1768460666887,27.2324746,144.38,144.32,6.28899164]
[1768460672189,96.966,144.43,144.32,0.05119164]
[1768460672190,28.10345273,144.36,144.32,0.05119164]
[1768460672385,28.10345273,144.34,144.3,6.2386]
[1768460672588,28.10345273,144.34,144.29,81.84]
[1768460673185,30.25653142,144.33,144.29,81.84]
[1768460673377,28.10345273,144.33,144.3,0.04692613]
[1768460679096,30.30586093,144.35,144.3,0.04692613]
[1768460679290,0.04932951,144.35,144.3,26.28070427]
[1768460682797,0.04932951,144.35,144.3,32.51930427]
[1768460691708,0.04932951,144.35,144.31,34.02573402]
[1768460693909,26.41441203,144.38,144.31,34.02573402]
[1768460695103,26.41441203,144.38,144.33,0.04511302]
[1768460695309,26.41441203,144.38,144.33,81.90511302]
[1768460698010,26.41441203,144.38,144.33,109.69254704]
[1768460699013,26.41441203,144.38,144.33,115.92994704]
[1768460699513,26.41441203,144.38,144.33,109.69254704]
[1768460699915,26.41441203,144.41,144.34,27.78743402]
[1768460700113,26.41441203,144.41,144.36,0.05171521]
[1768460703417,26.41441203,144.41,144.36,6.28771521]
[1768460703624,240.79380036,144.42,144.37,81.86]
[1768460704216,267.20821239,144.42,144.37,6.2356]
[1768460704920,26.41441203,144.41,144.37,6.2356]
[1768460705623,1.69684537,144.41,144.37,6.2356]
[1768460705820,4.537e-05,144.41,144.37,6.2356]
[1768460707721,26.41441203,144.44,144.37,27.78743402]
[1768460707922,26.41441203,144.44,144.39,0.04751795]
[1768460708825,26.41441203,144.44,144.39,6.28221795]
[1768460710424,13.10656894,144.44,144.4,6.2343]
[1768460716229,13.10656894,144.44,144.39,27.83495197]
[1768460716427,13.10656894,144.44,144.39,0.04751795]
[1768460717030,29.77566334,144.42,144.32,27.78743402]
[1768460717227,26.41441203,144.39,144.3,109.60743402]
[1768460717428,26.41441203,144.37,144.3,115.84593402]
[1768460717629,26.41441203,144.37,144.3,81.82]
[1768460718028,26.41441203,144.37,144.28,34.02693402]
[1768460718029,26.41441203,144.34,144.28,34.02693402]
[1768460719035,26.41441203,144.34,144.3,0.04695002]
[1768460723932,0.04583649,144.35,144.3,0.04695002]
[1768460724132,0.04583649,144.35,144.3,28.98152673]
[1768460733640,28.71380967,144.39,144.3,28.98152673]
[1768460733943,28.71380967,144.39,144.32,28.93457671]
[1768460734836,0.04956155,144.37,144.34,0.05062808]
[1768460737043,28.71380967,144.39,144.34,0.05062808]
[1768460747949,28.71380967,144.41,144.34,35.22210479]
[1768460748151,28.71380967,144.41,144.36,0.04514809]
[1768460758550,30.86370327,144.41,144.36,0.04514809]
[1768460760355,28.71380967,144.41,144.36,0.04514809]
[1768460760556,30.86370327,144.41,144.36,0.04514809]
[1768460761361,30.86370327,144.41,144.33,6.2373]
[1768460761560,29.02297109,144.38,144.33,6.2373]
[1768460762261,17.37847109,144.38,144.34,6.237]
[1768460762457,2.1498936,144.41,144.35,0.05156861]
[1768460762657,2.1498936,144.41,144.34,6.237]
[1768460763661,2.1498936,144.41,144.36,0.04522828]
[1768460764457,19.52296035,144.4,144.36,0.04522828]
[1768460765559,19.5149523,144.38,144.36,0.04522828]
[1768460765858,19.5149523,144.38,144.34,6.237]
[1768460766761,19.5149523,144.38,144.35,0.0501274]
[1768460766960,19.5149523,144.38,144.32,88.0777]
[1768460768158,19.5149523,144.38,144.34,0.04950845]
[1768460794690,19.5149523,144.38,144.31,32.75845691]
[1768460795693,0.04591537,144.36,144.33,0.05312117]
[1768460803401,19.31154011,144.36,144.31,2.1498936]
[1768460804396,19.31154011,144.36,144.29,81.84]
[1768460804897,19.31154011,144.36,144.28,2.1498936]
[1768460805094,19.26562474,144.36,144.28,30.89204574]
[1768460805796,25.50202474,144.36,144.28,30.89204574]
[1768460805992,0.04796341,144.33,144.31,0.05264076]
[1768460807898,19.17999115,144.35,144.31,0.05264076]
[1768460809005,0.04761235,144.34,144.31,0.05264076]
[1768460822006,18.95489847,144.34,144.28,27.44557331]
[1768460823317,18.95489847,144.34,144.3,0.04691376]
[1768460832321,0.04761235,144.34,144.3,0.04691376]
[1768460840137,18.6215925,144.33,144.27,27.44557331]
[1768460840642,18.6215925,144.33,144.26,81.84]
[1768460840940,18.59824546,144.32,144.26,81.84]
[1768460841139,18.59824546,144.32,144.26,110.27876117]
[1768460841341,0.0496806,144.3,144.28,0.05099354]
[1768460851044,0.0496806,144.3,144.26,81.84]
[1768460851249,18.52594298,144.3,144.26,81.84]
[1768460852244,18.52594298,144.3,144.27,0.04486991]
[1768460854750,18.52594298,144.3,144.24,110.91972392]
[1768460855753,18.52594298,144.3,144.26,0.0488379]
[1768460855952,0.0496806,144.3,144.26,0.0488379]
[1768460856250,6.2385,144.31,144.26,29.08856182]
[1768460857252,0.04890194,144.3,144.26,29.08856182]
[1768460862158,18.37046195,144.29,144.24,29.03972392]
[1768460863357,0.04456142,144.28,144.25,0.04402854]
[1768460881868,6.2378,144.33,144.27,27.33596533]
[1768460882074,17.2562294,144.36,144.28,29.48910469]
[1768460882270,5.28025955,144.35,144.3,29.48910469]
[1768460882470,17.2562294,144.36,144.3,29.48910469]
[1768460883069,0.05011828,144.34,144.32,0.04708066]
[1768460883469,0.05011828,144.34,144.3,29.48910469]
[1768460884578,0.05011828,144.34,144.31,0.04974981]
[1768460892180,0.05011828,144.34,144.31,27.38571514]
[1768460895875,6.2357,144.38,144.33,27.33596533]
[1768460896774,0.05167983,144.37,144.34,0.05269892]
[1768460898188,22.81669089,144.37,144.34,0.05269892]
[1768460898480,22.81669089,144.37,144.32,2.15313936]
[1768460898683,16.58079089,144.37,144.32,29.48910469]
[1768460898870,0.05167983,144.37,144.32,29.48910469]
[1768460899384,0.05167983,144.37,144.33,0.04907345]
[1768460902184,22.62557614,144.37,144.33,0.04907345]
[1768460904176,0.05167983,144.37,144.33,0.04907345]
[1768460904380,0.05167983,144.37,144.33,29.99943125]
[1768460909494,16.07633662,144.37,144.33,2.20221281]
[1768460910492,16.07633662,144.37,144.33,0.04907345]
[1768460911594,22.31223662,144.37,144.33,0.04907345]
[1768460911781,22.31223662,144.37,144.31,29.9503578]
[1768460912489,0.05167983,144.37,144.33,29.9503578]
[1768460912891,0.05167983,144.37,144.34,0.05298783]
[1768460913091,254.19254005,144.4,144.34,27.85020627]
[1768460913887,260.42714005,144.4,144.34,27.85020627]
[1768460914287,0.04522551,144.38,144.34,27.85020627]
[1768460943627,6.2346,144.4,144.34,27.85020627]
[1768460944721,0.0530639,144.38,144.34,27.85020627]
[1768460945122,6.2346,144.4,144.34,27.85020627]
[1768460946129,0.05127739,144.38,144.34,27.85020627]
[1768460958138,6.2346,144.4,144.34,27.85020627]
[1768460959337,88.0739,144.42,144.34,27.85020627]
[1768460959541,5.28252393,144.41,144.34,27.85020627]
[1768460959732,6.2339,144.42,144.34,27.85020627]
[1768460959933,5.28274486,144.41,144.34,27.85020627]
[1768460960136,6.2339,144.42,144.34,27.85020627]
[1768460960337,5.2829341,144.41,144.34,27.85020627]
[1768460960639,6.2339,144.42,144.34,27.85020627]
[1768460960842,5.2821974,144.41,144.34,27.85020627]
[1768460961133,6.2339,144.42,144.34,27.85020627]
[1768460961341,5.28235565,144.41,144.34,27.85020627]
[1768460961636,6.2339,144.42,144.34,27.85020627]
[1768460961826,5.28180567,144.41,144.34,27.85020627]
[1768460962032,6.2339,144.42,144.34,27.85020627]
[1768460962337,5.28177126,144.41,144.34,27.85020627]
[1768460962539,6.2339,144.42,144.34,27.85020627]
[1768460962741,0.04547375,144.39,144.34,27.85020627]
[1768460990574,6.2339,144.42,144.34,27.85020627]
[1768460991279,20.51809574,144.42,144.34,27.85020627]
[1768460991575,0.04524779,144.39,144.34,27.85020627]
[1768461006188,6.2331,144.44,144.37,25.52150266]
[1768461006386,5.28069122,144.43,144.39,25.52150266]
[1768461006588,14.09699334,144.45,144.39,25.52150266]
[1768461006890,5.28067421,144.44,144.39,25.52150266]
[1768461007085,14.09699334,144.45,144.39,25.52150266]
[1768461007286,14.09699334,144.45,144.41,0.05265448]
[1768461007287,5.24459992,144.44,144.41,0.05265448]
[1768461007587,179.96677394,144.49,144.41,25.57415714]
[1768461007588,16.28104342,144.49,144.41,25.57415714]
[1768461007782,19.36363341,144.48,144.41,25.57415714]
[1768461007980,14.11987429,144.48,144.41,25.57415714]
[1768461008177,16.26976834,144.47,144.41,25.57415714]
[1768461008378,14.11987429,144.44,144.41,0.05265448]
[1768461009185,14.11987429,144.44,144.37,25.52150266]
[1768461009784,14.11987429,144.44,144.37,27.67139671]
[1768461009983,14.11987429,144.44,144.38,25.52150266]
[1768461010386,0.05265448,144.42,144.4,0.05040746]
[1768461012179,14.11987429,144.44,144.4,0.05040746]
[1768461012388,2.14989405,144.45,144.4,0.05040746]
[1768461015394,2.14989405,144.45,144.4,25.57191012]
[1768461015895,20.26563238,144.48,144.4,25.57191012]
[1768461016095,22.41552643,144.48,144.4,25.57191012]
[1768461016296,14.03453238,144.47,144.4,25.57191012]
[1768461016693,20.26613238,144.47,144.4,25.57191012]
[1768461016895,16.17427959,144.46,144.4,25.57191012]
[1768461019494,14.02438554,144.46,144.4,25.57191012]
[1768461019698,16.17427959,144.46,144.4,25.57191012]
[1768461023300,14.02438554,144.46,144.4,25.57191012]
[1768461029901,6.2316,144.47,144.4,25.57191012]
[1768461030704,20.09686635,144.47,144.4,25.57191012]
[1768461033099,6.2316,144.47,144.4,25.57191012]
[1768461033301,97.79802279,144.49,144.4,25.57191012]
[1768461033492,15.99802279,144.49,144.43,0.04429874]
[1768461034804,6.2312,144.48,144.43,0.04429874]
[1768461036410,20.05583105,144.48,144.43,0.04429874]
[1768461039714,22.2057251,144.48,144.43,0.04429874]
[1768461043814,20.05583105,144.48,144.43,0.04429874]
[1768461044015,22.2057251,144.48,144.43,0.04429874]
[1768461045819,19.9602539,144.47,144.43,0.04429874]
[1768461046120,0.04429874,144.46,144.42,25.17869386]
[1768461047018,0.04429874,144.46,144.43,0.05011349]
[1768461048024,15.90977424,144.46,144.4,27.04221643]
[1768461048325,15.8654755,144.46,144.4,27.04221643]
[1768461048915,6.2324,144.45,144.4,27.04221643]